[Event "FIDE World Championship 2023"]
[Site "Astana"]
[Date "2023.04.23"]
[Round "10.1"]
[White "Ding, Liren"]
[Black "Nepomniachtchi, Ian"]
[Result "1/2-1/2"]
[ECO "A28"]
[WhiteElo "2788"]
[BlackElo "2795"]
[Annotator "TA"]
[PlyCount "90"]
[EventDate "2023.04.09"]
[EventType "match"]
[EventCountry "KAZ"]
[SourceTitle "playchess.com"]
[Source "ChessBase"]
[SourceQuality "1"]
[TimeControl "40/7200:20/3600:900+30"]

{[%evp 13,90,0,0,-2,-1,0,24,33,34,24,38,37,41,40,41,35,32,29,36,33,38,35,45,45,44,44,51,37,43,30,30,31,37,32,25,31,61,22,36,23,33,31,31,14,14,22,14,13,45,45,57,8,8,0,0,0,0,0,0,0,0,0,0,0,0,0,0,0,0,0,0,0,0,0,0,0,0,0,0]} 1. c4 {[%emt 0:00:15]} Nf6 {[%emt 0:00:08]} 2. Nc3 {[%emt 0:00:04]} e5 {[%emt 0:00:06]} 3. Nf3 {[%emt 0:00:03]} Nc6 {[%emt 0:00:06]} 4. e4 {[%emt 0:00:23]} Bc5 {[%emt 0:00:09]} 5. Nxe5 {[%emt 0:00:17]} Nxe5 {[%emt 0:00:05]} 6. d4 {[%emt 0:00:03]} Bb4 {[%emt 0:00:05]} 7. dxe5 {[%emt 0:00:05]} Nxe4 {[%emt 0:00:07]} 8. Qf3 $1 {[%emt 0:00:03][%mdl 4] outshines the older 8.Qd4. A28: English Opening: Four Knights Variation.} Nxc3 {[%emt 0:00:14]} (8... Qh4 {with more complications.} 9. a3 Bxc3+ 10. bxc3 f5) 9. bxc3 {[%emt 0:00:05]} Bc5 {[%emt 0:00:01]} 10. Qg3 {[%emt 0:11:22] White has an edge.} Kf8 {[%emt 0:01:57]} 11. Be2 {[%emt 0:14:42]} d6 {[%emt 0:00:59]} 12. Bf4 {[%emt 0:01:08]} Qe7 {[%emt 0:10:30]} 13. Rd1 {[%emt 0:04:32]} h5 {[%emt 0:02:10][%cal Oc8g4] [#]} 14. O-O $146 {[%emt 0:07:14]} (14. exd6 {simplifies} cxd6 15. Bxd6 Bxd6 16. Qxd6 Bf5 17. Qxe7+ Kxe7 18. Rd4) ({Predecessor:} 14. h4 dxe5 15. Bxe5 Bg4 16. Bxg4 hxg4 17. Kd2 Re8 18. Rhe1 Qd7+ 19. Kc1 Ba3+ 20. Kb1 {1-0 Nepomniachtchi,I (2784)-Cardoso Cardoso,J (2414) Titled Tuesday intern op 5th May blitz 2020 (4)}) 14... h4 {[%emt 0:13:56]} 15. Qd3 {[%emt 0:01:49]} g5 {[%emt 0:07:49]} 16. exd6 {[%emt 0:00:57]} cxd6 {[%emt 0:01:05]} 17. Bxd6 {[%emt 0:05:00]} Qxd6 {[%emt 0:00:42]} 18. Qxd6+ {[%emt 0:00:04]} Bxd6 {[%emt 0:00:04]} 19. Rxd6 {[%emt 0:00:03]} Be6 {[%emt 0:03:04]} 20. f4 {[%emt 0:04:16]} Ke7 {[%emt 0:01:00]} 21. Rd4 {[%emt 0:00:24] Threatens to win with f5.} gxf4 {[%emt 0:00:05]} 22. Rfxf4 {[%emt 0:00:37]} h3 {[%emt 0:00:06]} 23. g4 {[%emt 0:01:35]} Rac8 {[%emt 0:01:14]} 24. Kf2 {[%emt 0:00:33]} Rc5 {[%emt 0:01:01]} 25. a4 {[%emt 0:03:00]} Ra5 {[%emt 0:04:07]} 26. Bd1 {[%emt 0:00:36]} b6 {[%emt 0:08:17]} 27. Kg3 {[%emt 0:22:08]} Rh6 {[%emt 0:00:45]} 28. Rfe4 {[%emt 0:03:05] With the idea Rd5.} Kf8 {[%emt 0:00:47]} 29. Rd8+ {[%emt 0:05:04]} Kg7 {[%emt 0:00:42]} 30. Ra8 {[%emt 0:00:15]} Rc5 {[%emt 0:09:44]} 31. Rxa7 {[%emt 0:01:26] aiming for Be2.} Bxc4 {[%emt 0:00:45][%cal Oc4b3]} 32. Rae7 {[%emt 0:03:37]} (32. Rd7 $14) 32... Rhc6 $11 {[%emt 0:05:28] The position is equal.} 33. R7e5 {[%emt 0:09:47]} Rxe5 {[%emt 0:00:58]} 34. Rxe5 {[%emt 0:00:03][%cal Od1f3]} Bb3 $1 {[%emt 0:00:08][%mdl 64] [#] Discovered Attack, Decoy} 35. Bxb3 {[%emt 0:00:13]} Rxc3+ {[%emt 0:00:04]} 36. Kh4 {[%emt 0:00:03]} Rxb3 {[%emt 0:00:08][%mdl 4096] Endgame KR-KR} 37. Rb5 {[%emt 0:00:07]} Ra3 {[%emt 0:00:05]} 38. Rxb6 {[%emt 0:00:05] [#] Hoping for Ra6.} Rxa4 {[%emt 0:00:04]} 39. Kxh3 {[%emt 0:00:03]} f5 $1 {[%emt 0:00:34]} 40. gxf5 {[%emt 0:00:00]} Rf4 {[%emt 0:00:00]} 41. Rb5 {[%emt 0:00:38]} Kf6 {[%emt 0:00:10]} 42. Kg3 {[%emt 0:00:03]} Rxf5 {[%emt 0:00:03]} 43. Rxf5+ {[%emt 0:00:04]} Kxf5 {[%emt 0:00:07]} 44. h4 {[%emt 0:00:01]} Kg6 {[%emt 0:00:07]} 45. h5+ {[%emt 0:00:02]} Kxh5 {[%emt 1:40:14] Weighted Error Value: White=0.05 (flawless) /Black=0.04 (flawless)} 1/2-1/2

[Event "FIDE World Championship 2023"]
[Site "Astana"]
[Date "2023.04.24"]
[Round "11.1"]
[White "Nepomniachtchi, Ian"]
[Black "Ding, Liren"]
[Result "1/2-1/2"]
[ECO "C84"]
[WhiteElo "2795"]
[BlackElo "2788"]
[Annotator "TA"]
[PlyCount "77"]
[EventDate "2023.04.09"]
[EventType "match"]
[EventCountry "KAZ"]
[SourceTitle "playchess.com"]
[Source "ChessBase"]
[SourceQuality "1"]
[TimeControl "40/7200:20/3600:900+30"]

{[%evp 13,76,12,18,0,10,16,10,0,0,0,0,0,0,0,0,0,0,0,33,32,33,29,37,31,27,11,11,12,14,20,14,13,12,5,3,0,0,0,0,0,0,0,0,0,0,0,0,0,0,0,0,0,0,0,8,8,16,16,16,16,16,0,0,0,16]} 1. e4 {[%emt 0:00:04]} e5 {[%emt 0:00:06]} 2. Nf3 {[%emt 0:00:06]} Nc6 {[%emt 0:00:03]} 3. Bb5 {[%emt 0:00:05][%cal Bf1b5,Bb5a4,Ba4b3,Bb3a2][%mdl 32]} a6 {[%emt 0:00:13]} 4. Ba4 {[%emt 0:00:06]} Nf6 {[%emt 0:00:03]} 5. O-O {[%emt 0:00:08]} Be7 {[%emt 0:00:03]} 6. d3 {[%emt 0:00:26]} b5 {[%emt 0:00:30]} 7. Bb3 {[%emt 0:00:07]} d6 {[%emt 0:00:05]} 8. a3 {[%emt 0:00:08] C84: Closed Ruy Lopez: Unusual White 6th moves.} Na5 {[%emt 0:02:42]} (8... O-O 9. Nc3 Na5 10. Ba2 Be6 11. b4 Nc6 12. Bg5 Bxa2 13. Rxa2 Qd7 14. Bxf6 Bxf6 15. Nd5 a5 16. Rb2 axb4 17. axb4 Bd8 18. c4 Nd4 19. Nxd4 exd4 20. Qc2 c6 {½-½ Nepomniachtchi,I (2773)-Ding,L (2799) Airthings Masters Prelim rapid 2022 (14)}) 9. Ba2 {[%emt 0:01:00]} c5 {[%emt 0:00:05]} 10. Nc3 {[%emt 0:00:15][%cal Bb1c3,Bc3d5,Bd5e3][%mdl 32]} Be6 {[%emt 0:00:11]} 11. Bg5 {[%emt 0:00:06]} O-O {[%emt 0:02:23]} 12. Bxf6 {[%emt 0:00:45]} Bxf6 {[%emt 0:00:05]} 13. Nd5 {[%emt 0:00:03]} g6 {[%emt 0:00:35]} 14. Qd2 {[%emt 0:00:55] [#] And now Nxf6+ would win.} Bg7 $146 {[%emt 0:09:57]} ({Predecessor:} 14... Nc6 15. c3 Bg7 16. b4 Ne7 17. Ne3 Qd7 18. Ng5 Bxa2 19. Qxa2 h6 20. Nf3 a5 {0-1 Matrahalmi,T (2278)-Borosova,Z (2284) HUN-chT2 Breyer 1718 2017 (9.2)}) 15. Ng5 {[%emt 0:02:07]} c4 {[%emt 0:12:37]} (15... Nc6 $5) 16. Nxe6 {[%emt 0:10:45]} fxe6 {[%emt 0:00:29]} 17. Ne3 {[%emt 0:01:17][%cal Rd3c4]} Bh6 {[%emt 0:01:35]} 18. Rad1 {[%emt 0:00:27]} Rb8 {[%emt 0:11:17]} 19. dxc4 {[%emt 0:10:01]} Nxc4 {[%emt 0:04:51] The position is equal.} 20. Bxc4 {[%emt 0:00:36]} bxc4 {[%emt 0:00:03]} 21. Qxd6 {[%emt 0:00:47]} Qxd6 {[%emt 0:01:07]} 22. Rxd6 {[%emt 0:00:05]} Bxe3 {[%emt 0:00:04]} 23. fxe3 {[%emt 0:00:06]} Rxf1+ {[%emt 0:00:03]} 24. Kxf1 {[%emt 0:00:05]} Rxb2 {[%emt 0:00:02]} 25. Rxe6 {[%emt 0:01:18]} Rxc2 {[%emt 0:00:06]} 26. Rxa6 $11 {[%emt 0:04:19][%mdl 4096] Endgame KR-KR} Ra2 {[%emt 0:00:18]} 27. Rc6 {[%emt 0:00:09]} Rxa3 {[%emt 0:00:05]} 28. Rxc4 {[%emt 0:00:04]} Rxe3 {[%emt 0:02:47]} 29. Kf2 {[%emt 0:00:10]} Ra3 {[%emt 0:00:04]} 30. Rc5 {[%emt 0:00:38]} Ra2+ {[%emt 0:00:03]} 31. Kf3 {[%emt 0:00:04]} Ra3+ {[%emt 0:00:04]} 32. Kg4 {[%emt 0:00:10][%cal Og2g3]} Ra2 {[%emt 0:00:10]} 33. Kh3 {[%emt 0:00:14]} Re2 {[%emt 0:06:28]} 34. Rxe5 {[%emt 0:00:34]} Kf7 {[%emt 0:00:01]} 35. Kg3 {[%emt 0:00:35]} Kf6 {[%emt 0:00:03]} 36. Re8 {[%emt 0:00:06]} Kf7 {[%emt 0:00:02]} 37. Re5 {[%emt 0:00:12]} Kf6 {[%emt 0:00:02]} 38. Re8 {[%emt 0:00:06]} Kf7 {[%emt 0:00:02]} 39. Re5 {[%emt 0:00:06] Weighted Error Value: White=0.02 (flawless) /Black=0.03 (flawless)} 1/2-1/2

[Event "FIDE World Championship 2023"]
[Site "Astana"]
[Date "2023.04.26"]
[Round "12.1"]
[White "Ding, Liren"]
[Black "Nepomniachtchi, Ian"]
[Result "1-0"]
[ECO "D04"]
[WhiteElo "2788"]
[BlackElo "2795"]
[Annotator "TA"]
[PlyCount "75"]
[EventDate "2023.04.09"]
[EventType "match"]
[EventCountry "KAZ"]
[SourceTitle "playchess.com"]
[Source "ChessBase"]
[SourceQuality "1"]
[TimeControl "40/7200:20/3600:900+30"]

{[%evp 9,75,-6,0,0,66,18,39,20,22,15,7,9,13,11,10,0,0,-8,0,0,0,0,23,16,18,0,0,0,8,-41,-40,-62,-51,-62,-59,-61,-57,-64,-66,-164,-172,-168,-108,-188,-85,-71,-76,-137,207,-64,0,0,39,42,33,41,75,43,36,41,1362,1356,6241,5435,29986,29987,29987,29988]} 1. d4 {[%emt 0:00:18]} Nf6 {[%emt 0:00:06]} 2. Nf3 {[%emt 0:00:03]} d5 {[%emt 0:00:09]} 3. e3 {[%emt 0:00:17]} c5 {[%emt 0:00:58]} 4. Nbd2 {[%emt 0:00:09]} cxd4 {[%emt 0:01:13]} 5. exd4 {[%emt 0:00:07]} Qc7 {[%emt 0:00:21]} 6. c3 {[%emt 0:01:07] [#] D04: Colle System.} Bd7 $146 {[%emt 0:09:42]} (6... Nc6 $11) ({Predecessor:} 6... Nc6 7. Qc2 a6 8. Bd3 Bg4 9. h3 Bh5 10. Nh4 O-O-O 11. Nb3 e6 12. Be3 Bd6 13. g4 {½-½ Roesch M,H (2460)-Shpakovsky,A (2544) W-ch40 q01 email 2020}) 7. Bd3 {[%emt 0:01:43]} (7. Ne5 $14) 7... Nc6 $11 {[%emt 0:00:43]} 8. O-O {[%emt 0:01:15] White is slightly better.} Bg4 {[%emt 0:01:57]} 9. Re1 {[%emt 0:06:32]} e6 {[%emt 0:01:54]} 10. Nf1 {[%emt 0:00:26][%cal Bd2f1,Bf1g3,Bg3h5][%mdl 32]} Bd6 {[%emt 0:00:18]} 11. Bg5 {[%emt 0:01:08]} O-O {[%emt 0:04:07]} 12. Bxf6 {[%emt 0:28:14]} gxf6 {[%emt 0:00:34]} 13. Ng3 {[%emt 0:00:05]} f5 {[%emt 0:21:53]} (13... Kh8 {seems wilder.} 14. Kh1 Rg8 15. h3 Bxh3 16. gxh3 Bxg3 17. fxg3 Qxg3 18. Qe2 Qxh3+ 19. Nh2 Rg3) 14. h3 {[%emt 0:00:32]} Bxf3 {[%emt 0:01:57]} 15. Qxf3 {[%emt 0:01:51]} Ne7 {[%emt 0:00:12][%cal Bc6e7,Be7g6,Bg6h4][%mdl 32]} 16. Nh5 {[%emt 0:00:39]} Kh8 {[%emt 0:00:31]} 17. g4 {[%emt 0:01:34][%cal Rg4f5]} Rg8 {[%emt 0:00:56]} 18. Kh1 {[%emt 0:02:53][%cal Rg4f5]} Ng6 $1 {[%emt 0:04:46]} 19. Bc2 {[%emt 0:13:16]} (19. gxf5 Nh4 20. Qe3 exf5 $15) (19. Rg1 $11) 19... Nh4 $15 {[%emt 0:04:29]} 20. Qe3 {[%emt 0:04:24]} Rg6 {[%emt 0:05:54]} 21. Rg1 {[%emt 0:04:41]} f4 $1 {[%emt 0:04:29]} 22. Qd3 {[%emt 0:02:02]} Qe7 {[%emt 0:00:34]} 23. Rae1 {[%emt 0:04:03]} Qg5 {[%emt 0:02:59]} 24. c4 {[%emt 0:02:52]} (24. Qb5 $2 Nf3 25. Bxg6 (25. Qxb7 $2 Rb8 $19 {[%mdl 64] Skewer}) 25... Qh4 $19) ({Better is} 24. a4 $15) 24... dxc4 $19 {[%emt 0:04:06]} 25. Qc3 {[%emt 0:01:30]} b5 $1 {[%emt 0:02:40][%cal Oa8g8]} (25... Qd5+ 26. Be4 Qg5 27. Bxg6 (27. Bxb7 Rb8 $11) (27. Qxc4 Rag8 $11) 27... hxg6 28. d5+ e5 29. Ng3 $14) 26. a4 {[%emt 0:07:53] [#]} (26. a3 $17) 26... b4 {[%emt 0:04:00]} (26... Qd5+ $2 27. Be4 b4 28. Qc2 Qxd4 29. Bxa8 $18) (26... a6 $1 $19 {[%cal Oa8c8] has better winning chances. Threatens to win with ...Rc8!} 27. Be4 Rag8) 27. Qxc4 $17 {[%emt 0:00:07]} Rag8 {[%emt 0:00:27][%cal Oh4f3] White must now prevent ...Nf3!} 28. Qc6 {[%emt 0:01:54] [#] Against Nf3} ({White should play} 28. Bxg6 hxg6 29. d5 (29. Qc6 gxh5 30. Qxd6 Nf3 $15)) 28... Bb8 $2 {[%emt 0:01:23][%mdl 8192] Black is weak on the light squares} (28... Nf5 $1 $17 {[%cal Og5h4] stays on course. Strongly threatening ...Qh4!} 29. Bd1 (29. gxf5 Qxh5 30. Rxg6 Qxh3+ 31. Kg1 hxg6 32. Qg2 gxf5) (29. Bxf5 Qh4 $17) 29... Qh4) 29. Qb7 $2 {[%emt 0:05:01]} (29. Bxg6 $18 hxg6 30. d5 {[%mdl 64] Deflection} Qxd5+ 31. Qxd5 exd5 32. Nf6) 29... Rh6 {[%emt 0:01:10]} (29... f5 $15) 30. Be4 $11 {[%emt 0:00:21]} (30. Qxf7 $2 {loses.} Nf3 31. Bxh7 (31. Rxe6 $2 {is the wrong capture.} Qh4 $19) 31... Rxh7 32. Qf6+ Qxf6 33. Nxf6 Rxh3+ 34. Kg2 Nxg1 35. Nxg8 Kxg8 $19) 30... Rf8 {[%emt 0:10:27][%cal Of4f3]} 31. Qxb4 {[%emt 0:00:51]} Qd8 {[%emt 0:00:42]} 32. Qc3 $36 {[%emt 0:03:02][%mdl 2048] Hoping for d5+. Black is under pressure.} (32. f3 {is interesting.} f5 33. Qb7 Qc7 34. Rc1) 32... Ng6 {[%emt 0:00:24]} 33. Bg2 {[%emt 0:05:48] White is much more active. The black rooks are badly placed.} Qh4 {[%emt 0:01:52]} 34. Re2 {[%emt 0:00:18]} f5 $2 {[%emt 0:02:56][%mdl 8192]} (34... Rg8 $14) 35. Rxe6 $18 {[%emt 0:01:14] d5+ would be deadly.} Rxh5 {[%emt 0:16:35]} 36. gxh5 {[%emt 0:00:12]} Qxh5 {[%emt 0:00:25]} 37. d5+ {[%emt 0:00:04][%cal Bd4d5,Bd5d6][%mdl 32]} Kg8 {[%emt 0:00:03]} 38. d6 {[%emt 0:00:06] White used his chance.   Weighted Error Value: White=0.26 (precise) /Black=0.35} 1-0

[Event "FIDE World Championship 2023"]
[Site "Astana"]
[Date "2023.04.27"]
[Round "13.1"]
[White "Nepomniachtchi, Ian"]
[Black "Ding, Liren"]
[Result "1/2-1/2"]
[ECO "C84"]
[WhiteElo "2795"]
[BlackElo "2788"]
[Annotator "TA"]
[PlyCount "78"]
[EventDate "2023.04.09"]
[EventType "match"]
[EventCountry "KAZ"]
[SourceTitle "playchess.com"]
[Source "ChessBase"]
[SourceQuality "1"]
[TimeControl "40/7200:20/3600:900+30"]

{[%evp 15,78,19,22,17,20,0,0,0,0,0,18,0,0,-7,0,0,0,0,0,0,0,-60,-54,-58,-39,-35,-55,-73,-17,-12,-9,-42,0,0,0,0,13,18,22,21,27,6,45,45,59,58,57,55,47,51,49,16,13,9,9,9,56,0,0,0,0,0,0,0,0]} 1. e4 {[%emt 0:00:03]} e5 {[%emt 0:00:08]} 2. Nf3 {[%emt 0:00:04]} Nc6 {[%emt 0:00:05]} 3. Bb5 {[%emt 0:00:03]} a6 {[%emt 0:00:37]} 4. Ba4 {[%emt 0:00:05]} Nf6 {[%emt 0:00:04]} 5. O-O {[%emt 0:00:07]} Be7 {[%emt 0:00:02]} 6. d3 {[%emt 0:00:13]} b5 {[%emt 0:00:08]} 7. Bb3 {[%emt 0:00:05]} d6 {[%emt 0:00:03]} 8. c3 {[%emt 0:00:06]} (8. a3 O-O 9. Nc3 Na5 10. Ba2 Be6 11. b4 Nc6 12. Bg5 Bxa2 13. Rxa2 Qd7 14. Bxf6 Bxf6 15. Nd5 a5 16. Rb2 axb4 17. axb4 Bd8 18. c4 Nd4 19. Nxd4 exd4 {½-½ Nepomniachtchi,I (2773)-Ding,L (2799) Airthings Masters Prelim rapid 2022 (14)}) 8... O-O {[%emt 0:00:09]} 9. h3 {[%emt 0:00:05] C84: Closed Ruy Lopez: Unusual White 6th moves.} Bb7 {[%emt 0:00:27]} 10. Be3 {[%emt 0:01:34]} Na5 {[%emt 0:02:09]} 11. Bc2 {[%emt 0:00:06]} c5 {[%emt 0:00:05]} 12. Nbd2 {[%emt 0:00:07]} Re8 {[%emt 0:06:39] [#]} 13. a4 $146 {[%emt 0:00:11]} ({Predecessor:} 13. Qe2 Rc8 14. b3 Qc7 15. c4 b4 16. Rfd1 Bf8 17. Nf1 g6 18. Qd2 Bg7 19. Bh6 {0-1 Koay,Y (1154)-Tan,J (1901) Penang op-B 9th 2017 (1)}) 13... h6 {[%emt 0:05:50]} 14. d4 {[%emt 0:13:58]} exd4 {[%emt 0:05:26]} 15. cxd4 {[%emt 0:00:07]} cxd4 {[%emt 0:08:27]} 16. Nxd4 {[%emt 0:03:16]} Nc4 {[%emt 0:00:10]} 17. Nxc4 {[%emt 0:09:03]} bxc4 {[%emt 0:00:18]} 18. f3 {[%emt 0:06:14]} (18. Nf5 $11) 18... Bf8 $15 {[%emt 0:00:39]} 19. Bf2 $1 {[%emt 0:08:57]} d5 {[%emt 0:01:11]} 20. exd5 {[%emt 0:00:47]} Nxd5 {[%emt 0:00:30] Threatens to win with ...Nf4.} 21. Be4 {[%emt 0:00:41]} Re5 {[%emt 0:25:35]} ({Better is} 21... Rb8 $17 {...Nf4 is the strong threat.} 22. Qd2 Nb4) 22. Rc1 $11 {[%emt 0:02:26]} Rc8 {[%emt 0:02:16]} 23. Ne2 {[%emt 0:04:00]} Qe7 {[%emt 0:04:26]} (23... Qe8 $5 {[%cal Rd5e3]}) 24. Qd4 $1 {[%emt 0:05:09][%cal Oe2g3]} f5 {[%emt 0:09:11]} 25. Bg3 $1 {[%emt 0:04:00]} Rxe4 {[%emt 0:00:06]} 26. fxe4 {[%emt 0:00:05]} Qxe4 {[%emt 0:00:02]} 27. Qxe4 {[%emt 0:01:55]} fxe4 {[%emt 0:00:43]} 28. Rfd1 {[%emt 0:07:05]} Nb4 {[%emt 0:04:42]} 29. Rd7 {[%emt 0:01:54]} Bc5+ {[%emt 0:02:27]} 30. Kh2 {[%emt 0:00:59]} Bc6 {[%emt 0:01:41][%csl LRa4,LRd7]} 31. Rc7 {[%emt 0:00:47]} Rxc7 {[%emt 0:01:11]} 32. Bxc7 {[%emt 0:01:00]} Bd5 {[%emt 0:00:21]} 33. Nc3 {[%emt 0:04:34] [#] Strongly threatening Nxd5.} Nd3 {[%emt 0:00:22][%csl LRb2,LRc1]} 34. Rc2 {[%emt 0:01:37]} Bc6 {[%emt 0:00:29]} 35. a5 {[%emt 0:02:14]} Kf7 {[%emt 0:02:35]} (35... g5 $11 {deserves consideration.}) 36. Re2 {[%emt 0:08:13]} ({White should try} 36. Ne2 $1 $14) 36... Nc1 {[%emt 0:01:09] The position is equal.} 37. Re1 {[%emt 0:03:39]} Nd3 {[%emt 0:00:04][%csl LRb2,LRe1]} 38. Re2 {[%emt 0:00:02]} Nc1 {[%emt 0:03:22]} 39. Re1 {[%emt 0:00:13]} Nd3 {[%emt 0:00:04][%csl LRb2,LRe1] Weighted Error Value: White=0.11 (very precise) /Black=0.10 (very precise)} 1/2-1/2